[Event "4NCL Div 2 2024-25"]
[Site "England"]
[Date "2025.02.16"]
[Round "6.12"]
[White "Maciol, Ryszard"]
[Black "Gayson, Peter M"]
[Result "1/2-1/2"]
[Annotator "ChessBase"]
[ECO "A81"]
[WhiteElo "2125"]
[BlackElo "2087"]
[PlyCount "114"]
[EventDate "2024.11.23"]
[EventType "team-tourn"]
[EventCountry "ENG"]
[SourceTitle "playchess.com"]
[Source "ChessBase"]
[SourceQuality "1"]
[TimeControl "40/6000+30:3000+30"]

1. d4 {[%emt 0:18:21]} f5 {[%emt 0:10:59]} 2. g3 {[%emt 0:00:51]} g6 {[%emt 0:00:16]} 3. Bg2 {[%emt 0:01:27]} Bg7 {[%emt 0:00:10]} 4. Nf3 {[%emt 0:02:22]} Nh6 {[%emt 0:00:36]} 5. c4 {[%emt 0:02:15]} d6 {[%emt 0:00:29]} 6. O-O {[%emt 0:07:43]} Nf7 {[%emt 0:00:41]} 7. Qb3 {[%emt 0:00:35]} Nc6 {[%emt 0:03:29]} 8. Rd1 {[%emt 0:02:14]} O-O {[%emt 0:14:21]} 9. Nc3 {[%emt 0:01:10]} Kh8 {[%emt 0:11:35]} 10. Be3 {[%emt 0:03:58]} Bd7 {[%emt 0:05:46]} 11. c5 {[%emt 0:06:30]} dxc5 {[%emt 0:08:50]} 12. dxc5 {[%emt 0:01:15]} Qc8 {[%emt 0:01:01]} 13. Nd4 {[%emt 0:05:53]} e5 {[%emt 0:06:47]} 14. Nxc6 {[%emt 0:02:58]} Bxc6 {[%emt 0:00:38]} 15. Nd5 {[%emt 0:03:08]} e4 {[%emt 0:09:29]} 16. Nf4 {[%emt 0:07:43]} Qe8 {[%emt 0:03:06]} 17. Bd4 {[%emt 0:11:22]} Bxd4 {[%emt 0:08:31]} 18. Rxd4 {[%emt 0:00:41]} Qe5 {[%emt 0:00:13]} 19. Rad1 {[%emt 0:09:16]} Rae8 {[%emt 0:01:42]} 20. Nd5 {[%emt 0:03:06]} Nd8 {[%emt 0:02:11]} 21. R4d2 {[%emt 0:09:55]} Ne6 {[%emt 0:02:39]} 22. Qc4 {[%emt 0:00:40]} a6 {[%emt 0:07:39]} 23. f4 {[%emt 0:04:29]} exf3 {[%emt 0:03:45]} 24. Bxf3 {[%emt 0:00:09]} Ng5 {[%emt 0:00:24]} 25. Qc3 {[%emt 0:02:43]} Qxc3 {[%emt 0:01:20]} 26. bxc3 {[%emt 0:00:03]} Ne4 {[%emt 0:03:17]} 27. Bxe4 {[%emt 0:00:34]} Rxe4 {[%emt 0:00:11]} 28. Nxc7 {[%emt 0:00:26]} Rf7 {[%emt 0:00:25]} 29. Nd5 {[%emt 0:00:25]} Rc4 {[%emt 0:01:00]} 30. Nf4 {[%emt 0:00:57]} Re7 {[%emt 0:00:38]} 31. Rd8+ {[%emt 0:01:17]} Kg7 {[%emt 0:00:30]} 32. R1d6 {[%emt 0:00:22]} Rxc3 {[%emt 0:00:41]} 33. Kf2 {[%emt 0:00:37]} Re8 {[%emt 0:01:52]} 34. Rxe8 {[%emt 0:01:24]} Bxe8 {[%emt 0:00:02]} 35. Re6 {[%emt 0:00:29]} Kf7 {[%emt 0:00:25]} 36. Re5 {[%emt 0:00:14]} Bc6 {[%emt 0:00:49]} 37. h4 {[%emt 0:00:25]} Kf6 {[%emt 0:00:43]} 38. Re6+ {[%emt 0:00:08]} Kf7 {[%emt 0:00:04]} 39. Re5 {[%emt 0:00:03]} Rc2 {[%emt 0:00:18]} 40. Ne6 {[%emt 0:01:14]} Kf6 {[%emt 0:01:13]} 41. Re3 {[%emt 0:22:05]} Be4 {[%emt 0:27:38]} 42. Ng5 {[%emt 0:00:42]} h6 {[%emt 0:09:45]} 43. Nxe4+ {[%emt 0:00:42]} fxe4 {[%emt 0:00:06]} 44. Rb3 {[%emt 0:02:21]} Rxc5 {[%emt 0:02:03]} 45. Rxb7 {[%emt 0:00:32]} Ra5 {[%emt 0:00:15]} 46. Rb4 {[%emt 0:01:14]} Rxa2 {[%emt 0:02:07]} 47. Rxe4 {[%emt 0:00:04]} h5 {[%emt 0:01:16]} 48. Rf4+ {[%emt 0:00:28]} Ke5 {[%emt 0:00:18]} 49. Rf8 {[%emt 0:00:53]} a5 {[%emt 0:00:49]} 50. Rg8 {[%emt 0:00:19]} Kf5 {[%emt 0:00:17]} 51. Rf8+ {[%emt 0:00:16]} Ke6 {[%emt 0:00:44]} 52. Rg8 {[%emt 0:00:39]} Kf7 {[%emt 0:00:09]} 53. Ra8 {[%emt 0:00:19]} a4 {[%emt 0:00:30]} 54. Ra7+ {[%emt 0:00:36]} Kf6 {[%emt 0:00:11]} 55. Ra6+ {[%emt 0:00:06]} Kf5 {[%emt 0:00:23]} 56. Ra5+ {[%emt 0:00:18]} Kf6 {[%emt 0:03:00]} 57. Ra6+ {[%emt 0:00:06]} Kf5 {[%emt 0:00:43]} 1/2-1/2

[Event "4NCL Div 2 2024-25"]
[Site "England"]
[Date "2025.02.16"]
[Round "6.13"]
[White "Rich, Aaron"]
[Black "Horton, Jamie A"]
[Result "0-1"]
[Annotator "ChessBase"]
[ECO "B12"]
[WhiteElo "1919"]
[BlackElo "2163"]
[PlyCount "118"]
[EventDate "2024.11.23"]
[EventType "team-tourn"]
[EventCountry "ENG"]
[SourceTitle "playchess.com"]
[Source "ChessBase"]
[SourceQuality "1"]
[TimeControl "40/6000+30:3000+30"]

1. e4 {[%emt 0:10:30]} c6 {[%emt 0:16:57]} 2. d4 {[%emt 0:01:21]} d5 {[%emt 0:00:10]} 3. e5 {[%emt 0:00:03]} a6 {[%emt 0:08:13]} 4. Bd3 {[%emt 0:07:59]} c5 {[%emt 0:00:53]} 5. c3 {[%emt 0:00:52]} Nc6 {[%emt 0:00:06]} 6. Nf3 {[%emt 0:02:35]} Bg4 {[%emt 0:01:28]} 7. Nbd2 {[%emt 0:19:20]} e6 {[%emt 0:12:08]} 8. O-O {[%emt 0:02:01]} Qd7 {[%emt 0:13:44]} 9. h3 {[%emt 0:04:53]} Bh5 {[%emt 0:05:52]} 10. dxc5 {[%emt 0:06:21]} Bxc5 {[%emt 0:04:30]} 11. b4 {[%emt 0:01:01]} Ba7 {[%emt 0:05:13]} 12. a4 {[%emt 0:13:53]} Bb8 {[%emt 0:03:48]} 13. b5 {[%emt 0:05:40]} axb5 {[%emt 0:03:50]} 14. Bxb5 {[%emt 0:00:46]} Nge7 {[%emt 0:01:30]} 15. g4 {[%emt 0:03:13]} Bg6 {[%emt 0:00:26]} 16. Nb3 {[%emt 0:00:57]} O-O {[%emt 0:03:05]} 17. Ba3 {[%emt 0:01:45]} Rc8 {[%emt 0:04:09]} 18. Qe2 {[%emt 0:05:14]} Qd8 {[%emt 0:05:15]} 19. Nc5 {[%emt 0:05:16]} Qc7 {[%emt 0:02:42]} 20. Rfe1 {[%emt 0:02:39]} Ba7 {[%emt 0:04:28]} 21. Nd3 {[%emt 0:05:48]} Qd8 {[%emt 0:05:23]} 22. Rac1 {[%emt 0:00:43]} Na5 {[%emt 0:00:29]} 23. Nd2 {[%emt 0:01:51]} Nec6 {[%emt 0:02:23]} 24. Kg2 {[%emt 0:01:03]} Bb8 {[%emt 0:01:13]} 25. f4 {[%emt 0:01:19]} Na7 {[%emt 0:00:26]} 26. Nc5 {[%emt 0:01:58]} Nxb5 {[%emt 0:01:09]} 27. Qxb5 {[%emt 0:00:24]} Ba7 {[%emt 0:01:17]} 28. Bb4 {[%emt 0:01:23]} Bxc5 {[%emt 0:01:38]} 29. Bxc5 {[%emt 0:00:19]} Qc7 {[%emt 0:00:49]} 30. Bd4 {[%emt 0:01:34]} Nc4 {[%emt 0:00:41]} 31. Nxc4 {[%emt 0:01:20]} Qxc4 {[%emt 0:00:01]} 32. Ra1 {[%emt 0:00:55]} Be4+ {[%emt 0:01:12]} 33. Kf2 {[%emt 0:00:46]} Qc7 {[%emt 0:00:50]} 34. Re2 {[%emt 0:00:43]} Qe7 {[%emt 0:00:37]} 35. Kg3 {[%emt 0:00:02]} Rc7 {[%emt 0:00:33]} 36. Rb2 {[%emt 0:00:43]} Rac8 {[%emt 0:00:17]} 37. Qb4 {[%emt 0:00:31]} Qd8 {[%emt 0:00:36]} 38. Ra3 {[%emt 0:00:43]} Qe8 {[%emt 0:00:31]} 39. Qb5 {[%emt 0:00:42]} Rd7 {[%emt 0:00:51]} 40. a5 {[%emt 0:00:32]} h5 {[%emt 0:00:33]} 41. Rab3 {[%emt 0:21:53]} Rc4 {[%emt 0:40:13]} 42. Rb4 {[%emt 0:03:31]} Rxb4 {[%emt 0:06:25]} 43. Rxb4 {[%emt 0:00:21]} Qc8 {[%emt 0:01:05]} 44. Qe2 {[%emt 0:04:29]} Rc7 {[%emt 0:01:43]} 45. Qb2 {[%emt 0:03:08]} Qa8 {[%emt 0:00:07]} 46. Ra4 {[%emt 0:03:21]} Qa6 {[%emt 0:01:19]} 47. Qd2 {[%emt 0:09:45]} Qf1 {[%emt 0:00:23]} 48. Ra2 {[%emt 0:01:01]} hxg4 {[%emt 0:01:45]} 49. hxg4 {[%emt 0:01:47]} Qf3+ {[%emt 0:00:18]} 50. Kh2 {[%emt 0:02:05]} Qxg4 {[%emt 0:00:18]} 51. Qf2 {[%emt 0:02:10]} Bf3 {[%emt 0:01:53]} 52. Qg3 {[%emt 0:01:13]} Qh5+ {[%emt 0:00:24]} 53. Kg1 {[%emt 0:00:01]} Qh1+ {[%emt 0:00:12]} 54. Kf2 {[%emt 0:00:04]} Be4 {[%emt 0:00:26]} 55. Re2 {[%emt 0:01:37]} Rc4 {[%emt 0:00:33]} 56. a6 {[%emt 0:01:40]} bxa6 {[%emt 0:00:27]} 57. Rb2 {[%emt 0:00:02]} Ra4 {[%emt 0:00:48]} 58. Rb8+ {[%emt 0:00:14]} Kh7 {[%emt 0:00:00]} 59. c4 {[%emt 0:01:06]} Rxc4 {[%emt 0:00:20]} 0-1

[Event "4NCL Div 2 2024-25"]
[Site "England"]
[Date "2025.02.16"]
[Round "6.14"]
[White "Serbanescu, Diana-Maria"]
[Black "Jaufarally, Nadia"]
[Result "1-0"]
[Annotator "TA"]
[ECO "B22"]
[WhiteElo "1992"]
[BlackElo "1929"]
[PlyCount "49"]
[EventDate "2024.11.23"]
[EventType "team-tourn"]
[EventCountry "ENG"]
[SourceTitle "playchess.com"]
[Source "ChessBase"]
[SourceQuality "1"]
[TimeControl "40/6000+30:3000+30"]

{[%evp 15,49,34,31,-10,25,23,64,35,44,44,49,39,70,88,68,73,79,76,97,84,79,77,92,88,102,93,138,135,418,380,415,385,414,397,1581,1346]} 1. e4 {[%emt 0:10:04]} c5 {[%emt 0:10:09]} 2. c3 {[%emt 0:00:14]} d5 {[%emt 0:00:15]} 3. exd5 {[%emt 0:00:08]} Qxd5 {[%emt 0:00:24]} 4. d4 {[%emt 0:00:10]} Nf6 {[%emt 0:00:17]} 5. Nf3 {[%emt 0:00:09]} e6 {[%emt 0:00:13]} 6. Na3 {[%emt 0:04:22][%cal Bb1a3,Ba3b5,Bb5d4][%mdl 32]} cxd4 {[%emt 0:02:32]} 7. Nb5 {[%emt 0:00:17]} Na6 {[%emt 0:00:39]} 8. Nbxd4 {[%emt 0:01:10]} Be7 {[%emt 0:13:52]} 9. Bd3 {[%emt 0:07:53] B22: Sicilian: 2 c3.} O-O {[%emt 0:01:38]} 10. O-O {[%emt 0:00:36]} Rd8 {[%emt 0:14:30]} 11. Qe2 {[%emt 0:12:01] White is slightly better.} Nc5 {[%emt 0:02:16]} 12. Bc2 {[%emt 0:09:03]} b6 {[%emt 0:06:19]} 13. c4 $146 {[%emt 0:03:34] White has a queen side majority} ({Predecessor:} 13. Rd1 Ba6 14. Qe1 Qh5 15. Nc6 Re8 16. Nxe7+ Rxe7 17. Rd4 Bb7 18. Rh4 Qd5 19. Bg5 {1-0 Viana,V (1882)-Al Aisaee,A (1608) Olympiad Women-45 2024 (4.62)}) 13... Qb7 {[%emt 0:08:47]} 14. Re1 {[%emt 0:06:41]} a5 {[%emt 0:07:23]} 15. b3 {[%emt 0:05:22]} Bd7 {[%emt 0:01:50]} 16. Bb2 {[%emt 0:03:47]} Bd6 {[%emt 0:07:54]} 17. Rad1 {[%emt 0:06:56]} Qc7 {[%emt 0:04:56]} 18. h3 {[%emt 0:03:03]} Be8 {[%emt 0:04:40]} 19. Bb1 {[%emt 0:02:14]} Be7 {[%emt 0:09:38]} 20. Qc2 {[%emt 0:05:02]} h6 {[%emt 0:01:05]} 21. Ne5 {[%emt 0:03:39]} Nb7 $2 {[%emt 0:02:36][%mdl 8192]} (21... Kf8 $16 {was called for.} 22. g4 a4) 22. Ng4 $18 {[%emt 0:01:15][%cal Od4e6] [#] Threatens to win with Nxe6!.} Kf8 {[%emt 0:04:32]} 23. Nxf6 {[%emt 0:04:30]} Bxf6 {[%emt 0:00:35]} 24. Qh7 {[%emt 0:00:18] Qh8+ would kill now.} Nd6 $2 {[%emt 0:02:51] [#]} (24... Rxd4 25. Bxd4 Rc8 26. Bxf6 gxf6 27. Qxh6+ Ke7) 25. Rxe6 $1 {[%emt 0:01:04] Black got outplayed after the opening.   Weighted Error Value: White=0.06 (flawless) /Black=0.68  Loses game:     	---       	Black=1      Mistake:       	---       	Black=1      Inaccurate:     	White=1     	Black=4      OK:         	White=11    	Black=5} 1-0

[Event "4NCL Div 2 2024-25"]
[Site "England"]
[Date "2025.02.16"]
[Round "6.15"]
[White "Wills, Tom"]
[Black "Pedersen, Carsten"]
[Result "1/2-1/2"]
[Annotator "TA"]
[ECO "A07"]
[WhiteElo "1976"]
[BlackElo "2029"]
[PlyCount "43"]
[EventDate "2024.11.23"]
[EventType "team-tourn"]
[EventCountry "ENG"]
[SourceTitle "playchess.com"]
[Source "ChessBase"]
[SourceQuality "1"]
[TimeControl "40/6000+30:3000+30"]

{[%evp 9,43,-60,-41,-42,-50,-76,-78,-82,-56,-38,-37,-29,-31,-45,-21,-50,-21,-46,-34,-41,-18,-50,-53,-68,-43,-40,-47,-47,-38,-39,-19,-39,-24,-79,-42,-39]} 1. Nf3 {[%emt 0:10:53]} Nf6 {[%emt 0:11:17]} 2. g3 {[%emt 0:00:04]} d5 {[%emt 0:00:44]} 3. Bg2 {[%emt 0:02:31]} b5 {[%emt 0:00:12]} 4. c4 {[%emt 0:11:32]} bxc4 {[%emt 0:00:22]} 5. Ne5 {[%emt 0:00:11]} c6 {[%emt 0:13:37]} 6. b3 $146 {[%emt 0:02:19] A07: Réti Opening: New York and Capablanca Systems.} ({Predecessor:} 6. d4 cxd3 7. Qxd3 e6 8. O-O Bd6 9. Bf4 g5 10. Nxf7 Kxf7 11. Bxg5 Nbd7 {0-1 Faouzi,A-Fedorchuk,S (2569) Rabat op 3rd 2004 (1)}) 6... cxb3 {[%emt 0:05:59]} 7. Qxb3 e6 {[%emt 0:08:24]} 8. O-O {[%emt 0:05:15] Black is better.} Be7 {[%emt 0:06:16]} 9. Ba3 {[%emt 0:04:03]} Nfd7 {[%emt 0:08:39]} 10. Nxd7 {[%emt 0:09:00]} Qxd7 {[%emt 0:00:23]} 11. Rc1 {[%emt 0:03:36]} O-O {[%emt 0:03:28]} 12. d4 {[%emt 0:01:21]} Ba6 {[%emt 0:08:32]} 13. e3 {[%emt 0:06:13]} Rc8 {[%emt 0:00:53]} 14. Nd2 Qd8 {[%emt 0:07:30]} 15. Rc2 {[%emt 0:02:40]} Nd7 {[%emt 0:03:36]} 16. Rac1 {[%emt 0:02:58]} Rcb8 {[%emt 0:07:22]} (16... c5 $5 17. Bxc5 Nxc5 18. dxc5 Rab8 $17) 17. Bxe7 {[%emt 0:04:26]} Qxe7 {[%emt 0:00:02]} 18. Qc3 {[%emt 0:00:21]} Bb5 {[%emt 0:01:23]} 19. Nb3 {[%emt 0:01:33]} Nb6 {[%emt 0:07:23]} 20. Na5 {[%emt 0:02:36]} Rc8 {[%emt 0:03:40]} 21. Qc5 {[%emt 0:03:43]} (21. Bf1 $11 {remains equal.} h6 22. Qb2) 21... Qd7 {[%emt 0:02:18]} 22. Bf1 {[%emt 0:02:18] Weighted Error Value: White=0.13 (very precise) /Black=0.15 (very precise)   Mistake:       	White=1     	---        Inaccurate:     	White=3     	Black=3      OK:         	White=6     	Black=5} 1/2-1/2

[Event "4NCL Div 2 2024-25"]
[Site "England"]
[Date "2025.02.16"]
[Round "6.16"]
[White "Tompson, John C"]
[Black "Rich, Ben S"]
[Result "1-0"]
[Annotator "NA"]
[ECO "A43"]
[WhiteElo "2124"]
[BlackElo "1875"]
[PlyCount "77"]
[EventDate "2024.11.23"]
[EventType "team-tourn"]
[EventCountry "ENG"]
[SourceTitle "playchess.com"]
[Source "ChessBase"]
[SourceQuality "1"]
[TimeControl "40/6000+30:3000+30"]

1. d4 {[%emt 0:10:15]} c5 {[%emt 0:10:10]} 2. d5 {[%emt 0:00:15]} Nf6 {[%emt 0:00:17]} 3. Nc3 {[%emt 0:00:23]} g6 {[%emt 0:00:29]} 4. e4 {[%emt 0:00:48]} d6 {[%emt 0:00:08]} 5. Nf3 {[%emt 0:00:32]} Bg7 {[%emt 0:00:24]} 6. Bc4 {[%emt 0:01:16]} O-O {[%emt 0:00:57]} 7. O-O {[%emt 0:00:35]} Bg4 {[%emt 0:01:20]} 8. h3 {[%emt 0:00:47]} Bxf3 {[%emt 0:00:07]} 9. Qxf3 {[%emt 0:00:08]} Nbd7 {[%emt 0:01:51]} 10. Be2 {[%emt 0:01:21]} a6 {[%emt 0:02:59]} 11. a4 {[%emt 0:00:34]} Qc7 {[%emt 0:01:02]} 12. Qg3 {[%emt 0:06:51]} c4 {[%emt 0:04:18]} 13. f4 {[%emt 0:07:57]} b5 {[%emt 0:02:22]} 14. Qf3 b4 {[%emt 0:04:09]} 15. Nd1 {[%emt 0:09:29]} a5 {[%emt 0:01:26]} 16. Be3 {[%emt 0:04:53]} Nc5 {[%emt 0:12:36]} 17. e5 {[%emt 0:10:11]} Nfe4 {[%emt 0:00:35]} 18. Nf2 {[%emt 0:08:00]} Nxf2 {[%emt 0:05:26]} 19. Qxf2 {[%emt 0:06:06]} Rac8 {[%emt 0:03:07]} 20. Qh4 {[%emt 0:03:19]} dxe5 {[%emt 0:02:36]} 21. f5 {[%emt 0:04:30]} Nb7 {[%emt 0:14:30]} 22. Bg5 {[%emt 0:03:29]} Qc5+ {[%emt 0:05:08]} 23. Kh1 {[%emt 0:01:54]} f6 {[%emt 0:00:13]} 24. fxg6 {[%emt 0:03:14]} hxg6 {[%emt 0:00:09]} 25. Bg4 {[%emt 0:00:20]} f5 {[%emt 0:03:04]} 26. Bxe7 {[%emt 0:00:37]} Qxd5 {[%emt 0:00:42]} 27. Bxf8 {[%emt 0:02:32]} Rxf8 {[%emt 0:00:50]} 28. Rad1 {[%emt 0:02:25]} Qe6 {[%emt 0:09:08]} 29. Be2 {[%emt 0:00:38]} e4 {[%emt 0:01:24]} 30. b3 {[%emt 0:00:26]} cxb3 {[%emt 0:01:06]} 31. cxb3 {[%emt 0:00:12]} Qxb3 {[%emt 0:00:35]} 32. Rd7 {[%emt 0:03:51]} Rf7 {[%emt 0:03:17]} 33. Rc1 {[%emt 0:01:17]} Bc3 {[%emt 0:00:44]} 34. Rcd1 {[%emt 0:01:14]} Qe6 {[%emt 0:01:40]} 35. Rxf7 {[%emt 0:03:57]} Qxf7 {[%emt 0:00:44]} 36. Bb5 {[%emt 0:05:04]} Bf6 {[%emt 0:07:17]} 37. Qg3 {[%emt 0:01:38]} Nc5 {[%emt 0:01:21]} 38. Bc4 {[%emt 0:00:33]} Qxc4 {[%emt 0:01:05]} 39. Qxg6+ {[%emt 0:00:10]} 1-0

[Event "4NCL Div 2 2024-25"]
[Site "England"]
[Date "2025.02.16"]
[Round "6.17"]
[White "Bowcott-Terry, Finlay"]
[Black "Southcott-Moyers, Indy"]
[Result "0-1"]
[Annotator "ChessBase"]
[ECO "C54"]
[WhiteElo "2168"]
[BlackElo "2174"]
[PlyCount "64"]
[EventDate "2024.11.23"]
[EventType "team-tourn"]
[EventCountry "ENG"]
[SourceTitle "playchess.com"]
[Source "ChessBase"]
[SourceQuality "1"]
[TimeControl "40/6000+30:3000+30"]

1. e4 {[%emt 0:10:01]} e5 {[%emt 0:10:20]} 2. Nf3 {[%emt 0:00:04]} Nc6 {[%emt 0:00:04]} 3. Bc4 {[%emt 0:00:04]} Bc5 {[%emt 0:00:06]} 4. c3 {[%emt 0:00:03]} Nf6 {[%emt 0:00:06]} 5. d4 {[%emt 0:00:03]} exd4 {[%emt 0:00:06]} 6. b4 {[%emt 0:00:01]} Bb6 {[%emt 0:00:20]} 7. e5 {[%emt 0:00:07]} d5 {[%emt 0:00:14]} 8. exf6 {[%emt 0:07:36]} dxc4 {[%emt 0:00:07]} 9. b5 {[%emt 0:00:02]} O-O {[%emt 0:06:03]} 10. O-O {[%emt 0:05:39]} dxc3 {[%emt 0:01:35]} 11. fxg7 {[%emt 0:04:28]} Kxg7 {[%emt 0:05:08]} 12. Qc2 {[%emt 0:43:39]} Nd4 {[%emt 0:10:43]} 13. Nxd4 {[%emt 0:00:14]} Qxd4 {[%emt 0:04:24]} 14. Ba3 Qd3 {[%emt 0:24:42]} 15. Bxf8+ {[%emt 0:06:48]} Kxf8 {[%emt 0:02:58]} 16. Qc1 {[%emt 0:01:35]} c2 {[%emt 0:07:33]} 17. Qh6+ {[%emt 0:01:18]} Kg8 {[%emt 0:04:02]} 18. Nd2 {[%emt 0:05:06]} Bf5 {[%emt 0:03:33]} 19. Nf3 {[%emt 0:01:47]} Qd6 {[%emt 0:07:08]} 20. Qg5+ {[%emt 0:02:37]} Qg6 {[%emt 0:02:34]} 21. Qd2 {[%emt 0:00:19]} Be4 {[%emt 0:04:05]} 22. Kh1 {[%emt 0:00:59]} Qf6 {[%emt 0:00:56]} 23. Qe2 {[%emt 0:13:32]} Bd3 {[%emt 0:05:39]} 24. Qd2 {[%emt 0:00:01]} Rd8 {[%emt 0:01:42]} 25. Rg1 {[%emt 0:01:29]} c3 {[%emt 0:03:54]} 26. Qe1 {[%emt 0:00:01]} Kf8 {[%emt 0:01:37]} 27. Ne5 {[%emt 0:02:30]} Qxf2 {[%emt 0:01:59]} 28. Qxc3 {[%emt 0:02:56]} Qd4 {[%emt 0:01:03]} 29. Qxd3 {[%emt 0:00:48]} Qxd3 {[%emt 0:00:04]} 30. Nxd3 {[%emt 0:00:03]} Rxd3 {[%emt 0:01:36]} 31. Rgf1 {[%emt 0:00:18]} Be3 {[%emt 0:00:31]} 32. g3 {[%emt 0:00:16]} Rc3 {[%emt 0:00:23]} 0-1

[Event "4NCL Div 2 2024-25"]
[Site "England"]
[Date "2025.02.16"]
[Round "6.18"]
[White "Rees, Ioan"]
[Black "Shearsby, Jude"]
[Result "1-0"]
[Annotator "ChessBase"]
[ECO "E05"]
[WhiteElo "2251"]
[BlackElo "2192"]
[PlyCount "82"]
[EventDate "2024.11.23"]
[EventType "team-tourn"]
[EventCountry "ENG"]
[SourceTitle "playchess.com"]
[Source "ChessBase"]
[SourceQuality "1"]
[TimeControl "40/6000+30:3000+30"]

1. d4 {[%emt 0:10:01]} d5 {[%emt 0:10:08]} 2. c4 {[%emt 0:00:20]} e6 {[%emt 0:00:04]} 3. Nf3 {[%emt 0:00:03]} a6 {[%emt 0:00:05]} 4. g3 {[%emt 0:00:04]} dxc4 {[%emt 0:10:10]} 5. Bg2 {[%emt 0:02:11]} Nf6 {[%emt 0:03:50]} 6. O-O {[%emt 0:01:14]} Be7 {[%emt 0:01:29]} 7. a4 {[%emt 0:05:06]} O-O {[%emt 0:03:47]} 8. Qc2 {[%emt 0:00:04]} Nc6 {[%emt 0:05:06]} 9. Qxc4 {[%emt 0:01:49]} Rb8 {[%emt 0:01:40]} 10. Bf4 {[%emt 0:08:31]} Bd6 11. Ne5 {[%emt 0:10:58]} Bxe5 {[%emt 0:06:19]} 12. dxe5 {[%emt 0:00:35]} Nd5 {[%emt 0:00:06]} 13. Ra3 {[%emt 0:15:31]} Na5 {[%emt 0:19:27]} 14. Qc1 {[%emt 0:01:33]} b6 15. Bg5 {[%emt 0:09:48]} f6 {[%emt 0:16:26]} 16. exf6 {[%emt 0:00:27]} Nxf6 {[%emt 0:00:08]} 17. b4 {[%emt 0:02:38]} Nb7 {[%emt 0:00:06]} 18. Rc3 {[%emt 0:09:15]} Rf7 {[%emt 0:03:11]} 19. Nd2 {[%emt 0:02:22]} h6 {[%emt 0:12:51]} 20. Bxf6 {[%emt 0:03:32]} gxf6 {[%emt 0:00:01]} 21. Nf3 {[%emt 0:00:55]} Kg7 {[%emt 0:00:36]} 22. Rd1 {[%emt 0:00:53]} Nd6 {[%emt 0:03:40]} 23. Nd4 {[%emt 0:04:31]} Qd7 {[%emt 0:03:55]} 24. Nc6 {[%emt 0:02:09]} Rb7 {[%emt 0:01:00]} 25. Rd4 {[%emt 0:04:52]} Rf8 {[%emt 0:04:34]} 26. Rg4+ {[%emt 0:01:51]} Kh7 {[%emt 0:00:09]} 27. Ne5 {[%emt 0:00:39]} fxe5 {[%emt 0:01:17]} 28. Bxb7 {[%emt 0:00:09]} Rf7 {[%emt 0:00:40]} 29. Rh4 {[%emt 0:02:44]} Nf5 {[%emt 0:01:14]} 30. Be4 {[%emt 0:00:10]} Kg8 {[%emt 0:00:49]} 31. Rd3 {[%emt 0:01:27]} Qxa4 {[%emt 0:01:27]} 32. Bxf5 {[%emt 0:01:51]} exf5 {[%emt 0:00:16]} 33. Rd8+ {[%emt 0:00:12]} Rf8 {[%emt 0:00:03]} 34. Rxf8+ {[%emt 0:00:22]} Kxf8 {[%emt 0:00:05]} 35. Qxh6+ {[%emt 0:00:14]} Ke7 {[%emt 0:00:18]} 36. Qg7+ {[%emt 0:00:23]} Kd6 {[%emt 0:00:51]} 37. Qf8+ {[%emt 0:01:13]} Kc6 {[%emt 0:00:19]} 38. Qxc8 {[%emt 0:00:42]} Qd1+ {[%emt 0:00:03]} 39. Kg2 {[%emt 0:00:17]} Qd5+ {[%emt 0:00:04]} 40. e4 {[%emt 0:00:07]} Qxe4+ {[%emt 0:00:05]} 41. Rxe4 {[%emt 0:50:10]} Kd5 {[%emt 0:50:48]} 1-0

[Event "4NCL Div 2 2024-25"]
[Site "England"]
[Date "2025.02.16"]
[Round "6.19"]
[White "Valdepenas Octavio, Javier"]
[Black "Blackburn, Jonathan L B"]
[Result "1/2-1/2"]
[Annotator "ChessBase"]
[ECO "C09"]
[WhiteElo "2145"]
[BlackElo "2197"]
[PlyCount "70"]
[EventDate "2024.11.23"]
[EventType "team-tourn"]
[EventCountry "ENG"]
[SourceTitle "playchess.com"]
[Source "ChessBase"]
[SourceQuality "1"]
[TimeControl "40/6000+30:3000+30"]

1. e4 {[%emt 0:25:11]} e6 {[%emt 0:10:05]} 2. d4 {[%emt 0:00:04]} d5 {[%emt 0:00:03]} 3. Nd2 {[%emt 0:00:53]} c5 {[%emt 0:00:50]} 4. exd5 {[%emt 0:00:10]} exd5 {[%emt 0:00:03]} 5. Ngf3 {[%emt 0:01:04]} Nc6 {[%emt 0:01:23]} 6. Bb5 {[%emt 0:00:10]} Qe7+ {[%emt 0:01:25]} 7. Be2 {[%emt 0:00:20]} Qc7 {[%emt 0:00:16]} 8. O-O {[%emt 0:00:52]} Nf6 {[%emt 0:00:08]} 9. Re1 {[%emt 0:01:17]} cxd4 {[%emt 0:00:07]} 10. Nb3 {[%emt 0:06:24]} Bb4 {[%emt 0:00:08]} 11. Bd2 {[%emt 0:00:20]} Bxd2 {[%emt 0:00:04]} 12. Qxd2 {[%emt 0:00:28]} O-O {[%emt 0:00:05]} 13. Nbxd4 {[%emt 0:01:17]} Bg4 {[%emt 0:06:26]} 14. Nh4 {[%emt 0:17:31]} Ne4 {[%emt 0:09:23]} 15. Qe3 {[%emt 0:00:56]} Bxe2 {[%emt 0:03:35]} 16. Rxe2 {[%emt 0:06:10]} Ne5 {[%emt 0:21:30]} 17. f3 {[%emt 0:08:40]} Nc4 {[%emt 0:01:03]} 18. Qc1 Qb6 {[%emt 0:04:33]} 19. c3 {[%emt 0:05:03]} Nc5 {[%emt 0:04:29]} 20. b3 {[%emt 0:08:51]} Nd6 {[%emt 0:05:12]} 21. Qd2 {[%emt 0:03:38]} Ne6 {[%emt 0:03:30]} 22. Rd1 {[%emt 0:05:09]} Rac8 {[%emt 0:10:42]} 23. Kh1 {[%emt 0:09:36]} Nxd4 {[%emt 0:00:28]} 24. cxd4 {[%emt 0:01:27]} f6 {[%emt 0:11:09]} 25. g3 {[%emt 0:01:18]} Rfe8 {[%emt 0:03:51]} 26. Ng2 {[%emt 0:02:26]} Nb5 {[%emt 0:06:19]} 27. Rxe8+ {[%emt 0:00:56]} Rxe8 {[%emt 0:00:03]} 28. Nf4 {[%emt 0:00:43]} Nc7 {[%emt 0:02:27]} 29. Re1 {[%emt 0:00:41]} Rxe1+ {[%emt 0:00:35]} 30. Qxe1 {[%emt 0:00:02]} Kf7 {[%emt 0:01:29]} 31. Qe3 {[%emt 0:01:45]} Qa6 {[%emt 0:00:52]} 32. Qe2 {[%emt 0:01:12]} Qc6 {[%emt 0:00:07]} 33. Qd3 {[%emt 0:00:47]} Qb5 {[%emt 0:01:05]} 34. Qxb5 {[%emt 0:00:47]} Nxb5 {[%emt 0:00:09]} 35. Ne2 {[%emt 0:00:09]} Ke6 {[%emt 0:00:09]} 1/2-1/2